bitfinex-derivatives/quotes_SOLF0:USTF0_20250311
["timestamp","ask_amount","ask_price","bid_price","bid_amount"]
[1741722792395,7.8953788,127.63,127.61,0.05727263]
[1741722792600,0.0585788,127.63,127.61,0.05727263]
[1741722793601,7.8952788,127.63,127.61,0.05727263]
[1741722793800,0.0585788,127.63,127.61,0.05727263]
[1741722794700,0.0585788,127.63,127.62,7.8371]
[1741722794896,287.23807224,127.7,127.61,0.05727263]
[1741722795195,7.8353,127.65,127.6,34.24]
[1741722795598,287.23807224,127.7,127.6,34.24]
[1741722796101,0.05225735,127.66,127.64,0.05282864]
[1741722796302,7.8357,127.65,127.64,0.05282864]
[1741722797102,7.8357,127.65,127.57,2.4408]
[1741722797103,7.8387,127.6,127.57,10.2806]
[1741722797301,28.67807224,127.64,127.58,34.24]
[1741722798205,7.8389,127.6,127.58,34.24]
[1741722798607,0.05347152,127.62,127.58,42.13119804]
[1741722798805,0.05347152,127.62,127.58,7.89119804]
[1741722799009,0.05347152,127.62,127.58,34.27199804]
[1741722799202,7.839,127.6,127.58,34.27199804]
[1741722799403,0.05347152,127.62,127.58,34.27199804]
[1741722799802,7.839,127.59,127.58,34.27199804]
[1741722800207,0.05347152,127.62,127.58,34.27199804]
[1741722800409,7.8387,127.6,127.58,34.27199804]
[1741722800709,0.05347152,127.62,127.58,34.27199804]
[1741722800911,7.8386,127.6,127.58,34.27199804]
[1741722801409,7.8381,127.61,127.58,42.11129804]
[1741722801604,7.8381,127.61,127.58,34.27199804]
[1741722801802,0.05347152,127.62,127.58,34.27199804]
[1741722802109,7.8384,127.6,127.58,42.11129804]
[1741722802309,0.05347152,127.62,127.58,42.11129804]
[1741722802511,7.838,127.61,127.58,42.11129804]
[1741722802809,0.05347152,127.62,127.58,42.11129804]
[1741722803512,7.8379,127.61,127.58,42.11129804]
[1741722803910,0.05347152,127.62,127.58,34.27199804]
[1741722804115,7.8378,127.61,127.58,34.27199804]
[1741722804510,0.05347152,127.62,127.58,34.27199804]
[1741722804714,7.8387,127.6,127.58,34.27199804]
[1741722805014,0.05347152,127.62,127.58,34.27199804]
[1741722806213,7.8379,127.61,127.59,7.8385]
[1741722806417,0.05347152,127.62,127.58,34.27199804]
[1741722806917,7.8386,127.6,127.58,34.27199804]
[1741722807318,0.05347152,127.62,127.58,34.27199804]
[1741722808117,7.8381,127.61,127.58,42.11129804]
[1741722808315,7.8381,127.61,127.58,34.27199804]
[1741722808912,7.8381,127.61,127.59,7.8387]
[1741722809318,301.67509897,127.73,127.59,17.9083436]
[1741722809520,17.9083436,127.72,127.62,17.9083436]
[1741722809723,306.86589897,127.73,127.64,17.9083436]
[1741722810319,7.832,127.71,127.63,34.22]
[1741722810519,0.0560335,127.7,127.67,0.05391691]
[1741722811520,3.35e-05,127.7,127.69,25.7411436]
[1741722811721,5.25839897,127.73,127.69,17.9083436]
[1741722811923,269.37850738,127.8,127.72,17.9083436]
[1741722812122,269.37850738,127.8,127.73,34.22]
[1741722812729,0.05787681,127.78,127.75,0.05311198]
[1741722813722,0.05787681,127.78,127.76,7.828]
[1741722813919,0.05787681,127.78,127.75,0.05311198]
[1741722814726,0.05787681,127.78,127.75,7.88221198]
[1741722814929,0.05787681,127.78,127.75,0.05311198]
[1741722816928,0.05787681,127.78,127.77,7.8279]
[1741722818427,0.05787681,127.78,127.77,42.0079]
[1741722818632,7.681e-05,127.78,127.77,42.0079]
[1741722820030,7.681e-05,127.78,127.77,34.18]
[1741722821438,7.681e-05,127.78,127.77,42.0079]
[1741722823132,7.681e-05,127.78,127.77,34.18]
[1741722823631,7.681e-05,127.78,127.76,41.9882]
[1741722824136,7.681e-05,127.78,127.76,34.16]
[1741722824334,7.681e-05,127.78,127.77,7.8279]
[1741722825533,1.36174209,127.9,127.77,7.8279]
[1741722825831,4.9442,127.91,127.83,28.5738078]
[1741722826037,7.8173,127.95,127.85,28.5738078]
[1741722826237,7.5383,127.97,127.87,28.5738078]
[1741722826435,7.5383,127.97,127.88,34.16]
[1741722826737,0.05728661,127.94,127.91,7.87822077]
[1741722826936,0.05728661,127.94,127.92,34.16]
[1741722827336,7.87508661,127.94,127.92,34.16]
[1741722827537,0.05728661,127.94,127.92,34.16]
[1741722827934,0.05728661,127.94,127.93,7.8181]
[1741722829434,0.05728661,127.94,127.92,34.16]
[1741722829635,0.05728661,127.94,127.92,41.9785]
[1741722829841,0.05728661,127.94,127.92,34.16]
[1741722830136,386.89183666,128.05,127.92,65.0738078]
[1741722830344,386.89183666,128.05,127.95,28.5738078]
[1741722830636,386.89183666,128.05,127.96,34.14]
[1741722830841,258.18,128.05,127.96,34.14]
[1741722831035,28.5738078,128.04,127.96,34.14]
[1741722831237,0.0536048,128.02,127.99,0.04959359]
[1741722831436,7.8143,128.0,127.99,0.04959359]
[1741722831639,28.6274126,128.02,127.96,34.14]
[1741722831841,2.673,128.01,127.96,34.14]
[1741722832042,7.8146,127.99,127.93,7.8176]
[1741722832241,28.5738078,128.0,127.88,28.5738078]
[1741722832445,2.673,128.01,127.88,34.12]
[1741722832446,7.8181,127.94,127.88,34.12]
[1741722832739,0.04940981,127.92,127.9,0.05042935]
[1741722832939,258.08,127.97,127.9,0.05042935]
[1741722833140,0.05034302,127.92,127.9,0.05042935]
[1741722833342,258.08,127.97,127.9,0.05042935]
[1741722833541,0.05249717,127.92,127.9,0.05042935]
[1741722833737,286.6538078,127.97,127.9,0.05042935]
[1741722833939,28.5738078,127.95,127.9,0.05042935]
[1741722834238,28.6283995,127.95,127.9,0.05042935]
[1741722834443,0.0545917,127.95,127.9,0.05042935]
[1741722834852,7.8194,127.91,127.9,0.05042935]
[1741722835141,286.6538078,127.97,127.9,0.05042935]
[1741722835142,268.29563328,127.97,127.9,0.05042935]
[1741722835643,0.0521798,127.95,127.9,0.05042935]
[1741722836143,7.8186,127.93,127.9,0.05042935]
[1741722836334,0.0521798,127.95,127.9,0.05042935]
[1741722836939,185.22797489,127.97,127.9,0.05042935]
[1741722837844,185.22797489,127.97,127.9,7.87032935]
[1741722838342,0.05912498,127.95,127.9,0.05042935]
[1741722838743,7.818,127.94,127.9,0.05042935]
[1741722838942,213.80178269,127.97,127.9,7.87032935]
[1741722839143,213.80178269,127.97,127.9,0.05042935]
[1741722840446,28.5738078,127.94,127.87,34.1]
[1741722840748,2.5193,127.93,127.87,34.1]
[1741722841247,2.4502,127.92,127.87,34.1]
[1741722841643,0.05116144,127.91,127.88,0.0531929]
[1741722842543,6.144e-05,127.91,127.89,28.5738078]
[1741722842757,6.144e-05,127.91,127.9,7.82]
[1741722845254,6.144e-05,127.91,127.9,36.3938078]
[1741722845450,5.0914,128.0,127.96,7.8163]
[1741722845661,5.0914,128.0,127.96,34.1]
[1741722846754,5.0914,128.0,127.97,0.05542704]
[1741722847653,5.0914,128.0,127.96,34.1]
[1741722848053,7.8148,127.99,127.96,34.1]
[1741722848254,5.0914,128.0,127.96,34.1]
[1741722848852,0.05294806,127.99,127.97,0.05018379]
[1741722849252,2.4487,128.02,127.97,0.05018379]
[1741722853759,7.8144,128.0,127.97,0.05018379]
[1741722854058,2.4487,128.02,127.94,10.52319283]
[1741722854253,28.5738078,127.99,127.94,10.52319283]
[1741722854451,2.4694,127.98,127.94,10.52319283]
[1741722854652,2.4694,127.98,127.97,48.44732047]
[1741722854860,2.4694,127.98,127.97,24.59832047]
[1741722855060,10.2845,127.98,127.97,20.62342047]
[1741722855256,7.8151,127.98,127.97,20.62342047]
[1741722855449,0.05100226,127.99,127.97,20.62342047]
[1741722856257,0.05100226,127.99,127.98,7.8151]
[1741722857157,127.55226153,128.13,127.97,49.19722827]
[1741722857356,28.5738078,128.11,127.97,45.45154977]
[1741722857852,7.8089,128.09,127.97,45.45154977]
[1741722858058,28.5738078,128.11,127.97,45.45154977]
[1741722858361,7.8106,128.06,128.03,0.05967439]
[1741722858564,28.5738078,128.05,127.97,16.87774197]
[1741722858759,291.92,128.04,127.97,16.87774197]
[1741722858966,7.8129,128.02,127.97,16.87774197]
[1741722859361,7.8122,128.03,127.97,16.87774197]
[1741722859559,0.05062466,128.01,127.99,0.05616027]
[1741722859966,0.05062466,128.01,128.0,7.8139]
[1741722860260,0.05062466,128.01,128.0,126.27831401]
[1741722861466,0.05062466,128.01,128.0,134.09221401]
[1741722861762,1.8999,128.09,128.0,126.27831401]
[1741722861968,257.84,128.1,128.01,28.5738078]
[1741722862162,257.84,128.1,128.09,7.8084]
[1741722865370,257.84,128.1,128.08,0.06000881]
[1741722865880,0.02323841,128.11,128.08,0.06000881]
[1741722866378,0.02323841,128.11,128.08,10.77228528]
[1741722867272,7.8084,128.09,128.08,10.77228528]
[1741722867677,2.63293841,128.11,128.08,10.77228528]
[1741722867878,28.5738078,128.09,128.07,85.69821182]
[1741722868077,28.5738078,128.09,128.06,126.27831401]
[1741722868374,7.8085,128.09,128.06,126.27831401]
[1741722868574,28.5738078,128.1,128.06,126.27831401]
[1741722868771,7.8087,128.09,128.06,126.27831401]
[1741722868972,28.5738078,128.1,128.06,126.27831401]
[1741722869175,28.5738078,128.1,128.06,0.05294009]
[1741722869373,36.3819078,128.1,128.06,0.05294009]
[1741722869681,28.5738078,128.1,128.06,0.05294009]
[1741722870279,0.02323841,128.11,128.06,34.07294009]
[1741722870476,0.02323841,128.11,128.1,7.8078]
[1741722870677,0.02323841,128.11,128.06,34.02]
[1741722870874,0.02323841,128.11,128.09,0.05648587]
[1741722874778,0.02323841,128.11,128.1,7.8078]
[1741722876792,0.02323841,128.11,128.1,41.8078]
[1741722877394,0.02323841,128.11,128.1,34.0]
[1741722877693,0.02323841,128.11,128.09,7.86458587]
[1741722877886,0.02323841,128.11,128.09,0.05648587]
[1741722878087,0.02323841,128.11,128.1,7.8078]
[1741722878688,0.02323841,128.11,128.09,7.86448587]
[1741722879288,0.02323841,128.11,128.09,0.05648587]
[1741722880289,28.59704621,128.11,128.04,2.4557]
[1741722880496,28.5738078,128.09,128.04,2.4557]
[1741722880894,28.5738078,128.09,128.01,33.98]
[1741722881190,28.5738078,128.12,128.01,33.98]
[1741722881394,0.05880285,128.08,128.05,7.86147758]
[1741722881596,0.05880285,128.08,128.05,41.84147758]
[1741722881797,0.05880285,128.08,128.05,34.03107758]
[1741722882294,0.05880285,128.08,128.06,5.1255]
[1741722883896,0.05880285,128.08,128.06,12.9354]
[1741722884402,0.05880285,128.08,128.06,5.1255]
[1741722884902,0.05880285,128.08,128.06,12.9354]
[1741722885101,0.05880285,128.08,128.06,5.1255]
[1741722885403,7.86830285,128.08,128.06,5.1255]
[1741722885601,0.05880285,128.08,128.05,34.03107758]
[1741722886003,7.8102,128.07,128.05,34.03107758]
[1741722888107,0.05880285,128.08,128.05,0.05107758]
[1741722888604,0.05880285,128.08,128.05,2.59157758]
[1741722888806,7.8074,128.11,128.05,2.59157758]
[1741722889003,192.0,128.2,128.06,2.6219]
[1741722889198,7.8059,128.13,128.1,7.8073]
[1741722889806,7.8059,128.13,128.08,33.98]
[1741722890006,7.86293107,128.13,128.1,0.05334277]
[1741722890207,0.05703107,128.13,128.1,0.05334277]
[1741722890406,0.05703107,128.13,128.11,7.8067]
[1741722890706,7.807,128.12,128.1,0.05334277]
[1741722890905,0.05703107,128.13,128.1,0.05334277]
[1741722891306,7.8071,128.11,128.1,0.05334277]
[1741722892306,7.8067,128.12,128.1,0.05334277]
[1741722892700,0.05703107,128.13,128.1,0.05334277]
[1741722892898,7.8071,128.11,128.1,0.05334277]
[1741722893718,7.8067,128.12,128.1,0.05334277]
[1741722894105,0.05703107,128.13,128.1,0.05334277]
[1741722894305,7.8066,128.12,128.1,0.05334277]
[1741722894500,0.05703107,128.13,128.1,0.05334277]
[1741722894804,7.86323107,128.13,128.1,7.86104277]
[1741722895309,0.05703107,128.13,128.1,0.05334277]
[1741722896208,7.8069,128.12,128.1,0.05334277]
[1741722896409,0.05703107,128.13,128.1,0.05334277]
[1741722897208,7.8071,128.11,128.1,0.05334277]
[1741722898715,7.8071,128.11,128.1,4.277e-05]
[1741722900310,36.3809078,128.11,128.1,4.277e-05]
[1741722900514,64.8738078,128.11,128.01,119.4818089]
[1741722900714,62.5338078,128.11,128.02,34.64906669]
[1741722901514,7.8112,128.05,128.02,34.64906669]
[1741722901709,0.05108615,128.08,128.02,34.64906669]
[1741722901906,28.5738078,128.08,128.02,2.68340521]
[1741722902115,0.05791464,128.06,128.02,2.68340521]
[1741722902517,7.8111,128.05,128.02,2.68340521]
[1741722902816,7.8111,128.05,128.02,10.49580521]
[1741722903017,0.05791464,128.06,128.02,2.68340521]
[1741722903719,7.812,128.03,128.02,2.68340521]
[1741722903916,0.05791464,128.06,128.02,2.68340521]
[1741722904116,7.8108,128.05,128.02,2.68340521]
[1741722904316,0.05791464,128.06,128.02,2.68340521]
[1741722904715,275.11166931,128.14,128.03,28.5738078]
[1741722904915,257.66,128.2,128.12,7.8065]
[1741722905119,7.8027,128.19,128.13,36.3788]
[1741722905318,257.66,128.2,128.15,7.8047]
[1741722905520,32.22798768,128.21,128.15,7.8047]
[1741722905716,0.05509271,128.19,128.17,0.05923991]
[1741722907119,82.44448817,128.22,128.17,62.57304771]
[1741722907317,78.47538817,128.22,128.17,62.57304771]
[1741722907716,0.98113172,128.26,128.17,62.57304771]
[1741722907920,0.98113172,128.26,128.2,7.8015]
[1741722908117,0.02126566,128.23,128.21,33.94]
[1741722908317,98.30537109,128.33,128.21,62.5138078]
[1741722908615,98.30537109,128.33,128.25,28.5738078]
[1741722908919,98.30537109,128.33,128.26,33.94]
[1741722909426,98.30537109,128.33,128.28,0.06014557]
[1741722909614,126.87917889,128.33,128.28,0.06014557]
[1741722910022,98.30537109,128.33,128.29,28.5738078]
[1741722910226,127.01766522,128.34,128.32,28.5738078]
[1741722910423,330.57712899,128.36,128.32,28.5738078]
[1741722910615,330.57712899,128.36,128.32,0.05138881]
[1741722911220,330.57712899,128.36,128.33,33.94]
[1741722911915,28.5738078,128.39,128.33,33.94]
[1741722912119,2.5128,128.4,128.33,33.94]
[1741722912319,2.5128,128.4,128.35,0.05684574]
[1741722913228,7.7912,128.38,128.35,0.05684574]
[1741722913623,28.5738078,128.39,128.35,0.05684574]
[1741722913823,7.7908,128.38,128.35,0.05684574]
[1741722914023,28.5738078,128.39,128.35,0.05684574]
[1741722914425,7.7913,128.38,128.35,0.05684574]
[1741722914622,33.4717078,128.39,128.35,0.05684574]
[1741722915021,7.7914,128.37,128.35,0.05684574]
[1741722915421,33.4717078,128.39,128.35,0.05684574]
[1741722915827,7.7918,128.37,128.35,0.05684574]
[1741722916026,33.4717078,128.39,128.35,0.05684574]
[1741722916228,7.7919,128.36,128.35,0.05684574]
[1741722916731,7.7937,128.34,128.31,33.9]
[1741722917030,28.5738078,128.37,128.31,33.9]
[1741722917226,28.5738078,128.34,128.28,65.91846669]
[1741722917428,28.5738078,128.32,128.28,32.01846669]
[1741722917824,0.05054058,128.31,128.29,0.05402017]
[1741722918021,7.7962,128.29,128.28,32.01846669]
[1741722918227,28.5738078,128.3,128.26,85.5218089]
[1741722918731,28.5738078,128.3,128.22,57.11792006]
[1741722919127,28.5738078,128.3,128.25,0.05141412]
[1741722919329,0.05173781,128.27,128.25,0.05141412]
[1741722921723,0.05173781,128.27,128.26,33.88]
[1741722921931,2.4359,128.33,128.26,33.88]
[1741722922933,285.8938078,128.34,128.26,33.88]
[1741722923129,0.0546652,128.31,128.28,0.05924671]
[1741722924233,7.7961,128.3,128.28,0.05924671]
[1741722924444,0.0546652,128.31,128.28,0.05924671]
[1741722924730,7.796,128.3,128.28,0.05924671]
[1741722924927,0.0546652,128.31,128.28,0.05924671]
[1741722926432,0.0546652,128.31,128.28,7.85594671]
[1741722926634,1.35635499,128.41,128.28,28.63305451]
[1741722926832,257.24,128.44,128.29,4.9855]
[1741722926833,31.0551078,128.4,128.29,4.9855]
[1741722927032,7.793,128.35,128.3,41.6755]
[1741722927236,31.0551078,128.4,128.3,33.88]
[1741722927936,28.5738078,128.35,128.34,7.697e-05]
[1741722928132,7.7967,128.29,128.28,33.88]
[1741722928328,28.5738078,128.33,128.28,33.88]
[1741722928728,17.8493026,128.33,128.28,33.88]
[1741722929134,7.7962,128.29,128.28,33.88]
[1741722929326,2.55076032,128.32,128.26,85.5218089]
[1741722929539,7.7968,128.28,128.27,0.05681708]
[1741722929938,0.04941657,128.3,128.27,0.05681708]
[1741722930139,7.7964,128.29,128.27,0.05681708]
[1741722930342,0.04941657,128.3,128.27,0.05681708]
[1741722932729,7.7966,128.29,128.27,0.05681708]
[1741722932937,0.04941657,128.3,128.27,0.05681708]
[1741722933434,7.7968,128.28,128.27,17.54924569]
[1741722933643,7.72946158,128.28,128.27,17.54924569]
[1741722933829,7.798,128.26,128.25,85.5218089]
[1741722935240,7.7986,128.25,128.24,0.05341092]
[1741722938438,28.5738078,128.25,128.2,33.86]
[1741722938637,5.1497,128.26,128.18,92.9063089]
[1741722938833,28.5738078,128.24,128.19,33.86]
[1741722939042,7.8007,128.22,128.18,92.9063089]
[1741722939241,28.5738078,128.24,128.19,33.86]
[1741722939638,0.05666356,128.23,128.2,0.05219388]
[1741722940040,7.8011,128.21,128.2,0.05219388]
[1741722940245,7.8011,128.21,128.2,6.896956]
[1741722942946,36.3749078,128.21,128.2,2.930556]
[1741722944744,7.8017,128.2,128.19,0.05774548]
[1741722945846,7.8017,128.2,128.19,4.548e-05]
[1741722946143,7.8029,128.18,128.17,1.48e-06]
[1741722947250,28.5738078,128.19,128.16,85.57635531]
[1741722947251,7.8035,128.17,128.16,85.57635531]
[1741722947642,7.8035,128.17,128.16,6.82164926]
[1741722948043,7.8035,128.17,128.16,4.926e-05]
[1741722948341,7.8047,128.15,128.14,85.5218089]
[1741722948944,7.8059,128.13,128.12,436.7551599]
[1741722949147,36.3797078,128.13,128.12,33.45272362]
[1741722950755,7.8059,128.13,128.12,33.45272362]
[1741722951147,0.04950861,128.14,128.12,33.45272362]
[1741722951352,0.04950861,128.14,128.11,0.04967042]
[1741722952352,7.8065,128.12,128.11,0.04967042]
[1741722952552,265.2665,128.12,128.11,0.04967042]
[1741722953952,265.2665,128.12,128.11,7.042e-05]
[1741722955550,257.46,128.12,128.11,7.042e-05]
[1741722956145,265.2665,128.12,128.11,7.042e-05]
[1741722957355,7.8099,128.07,128.05,2.3956]
[1741722957555,257.46,128.12,128.05,2.3956]
[1741722957958,7.8093,128.08,128.05,2.3956]
[1741722958552,7.86481221,128.08,128.05,2.44937515]
[1741722959153,0.05551221,128.08,128.05,2.44937515]
[1741722960355,0.05551221,128.08,128.07,7.8096]
[1741722961057,0.05551221,128.08,128.05,10.25987515]
[1741722961458,0.05551221,128.08,128.05,2.44937515]
[1741722961658,0.05551221,128.08,128.07,7.8096]
[1741722962064,0.05551221,128.08,128.05,2.44937515]
[1741722963659,0.05551221,128.08,128.05,0.05377515]
[1741722964858,7.86481221,128.08,128.05,7.86427515]
[1741722965155,0.05551221,128.08,128.05,0.05377515]
[1741722965362,7.86451221,128.08,128.05,7.86417515]
[1741722965562,0.05551221,128.08,128.05,0.05377515]
[1741722966065,0.05551221,128.08,128.07,7.8096]
[1741722966671,257.46,128.12,128.09,7.808]
[1741722967167,257.46,128.12,128.1,7.8074]
[1741722967360,257.46,128.12,128.07,33.88]
[1741722967760,0.05375448,128.11,128.08,0.05756364]
[1741722967960,7.8082,128.1,128.08,0.05756364]
[1741722968170,0.05375448,128.11,128.08,0.05756364]
[1741722968561,7.8084,128.09,128.08,0.05756364]
[1741722969063,7.8082,128.1,128.08,0.05756364]
[1741722969567,0.05375448,128.11,128.08,0.05756364]
[1741722969765,7.8084,128.09,128.08,0.05756364]
[1741722970163,0.05375448,128.11,128.08,0.05756364]
[1741722970363,7.808,128.1,128.08,0.05756364]
[1741722971166,7.8084,128.09,128.08,0.05756364]
[1741722972065,7.8079,128.1,128.08,0.05756364]
[1741722972465,7.86145448,128.11,128.08,0.05756364]
[1741722972665,0.05375448,128.11,128.08,0.05756364]
[1741722973060,7.8081,128.1,128.08,0.05756364]
[1741722973266,0.05375448,128.11,128.08,0.05756364]
[1741722973662,0.05375448,128.11,128.08,7.86616364]
[1741722973663,7.86115448,128.11,128.08,7.86616364]
[1741722973870,0.05375448,128.11,128.08,0.05756364]
[1741722974470,7.8084,128.09,128.08,0.05756364]
[1741722974968,7.8084,128.09,128.08,6.364e-05]
[1741722976277,7.8108,128.05,128.04,2.4855]
[1741722976873,28.5738078,128.09,128.02,38.9302]
[1741722977273,28.5738078,128.09,128.02,2.448]
[1741722977572,7.812,128.03,128.02,2.448]
[1741722978777,0.05004775,128.04,128.01,0.04960479]
[1741722979476,7.8123,128.03,128.01,0.04960479]
[1741722979874,0.05004775,128.04,128.01,7.86240479]
[1741722980069,0.05004775,128.04,128.01,0.04960479]
[1741722980475,0.05004775,128.04,128.01,7.86240479]
[1741722980679,0.05004775,128.04,128.01,0.04960479]
[1741722981072,0.05004775,128.04,128.02,7.8123]
[1741722981273,0.05004775,128.04,128.01,0.04960479]
[1741722981479,0.05004775,128.04,128.01,7.86240479]
[1741722981873,0.05004775,128.04,128.01,0.04960479]
[1741722982675,7.8126,128.02,128.01,0.04960479]
[1741722984374,25.61822709,128.02,128.01,0.04960479]
[1741722986074,7.8126,128.02,128.01,0.04960479]
[1741722989486,36.29802123,128.02,128.01,4.79e-06]
[1741722991190,36.29802123,128.02,127.96,7.8161]
[1741722991191,7.8161,127.97,127.94,39.0094]
[1741722991391,28.48542123,128.02,127.94,39.0094]
[1741722991592,28.48542123,128.02,127.94,5.1494]
[1741722991788,7.8169,127.95,127.94,2.5744]
[1741722992493,28.48542123,127.98,127.93,2.62090498]
[1741722992494,0.05327643,127.96,127.93,2.62090498]
[1741722994397,257.82,127.95,127.93,0.05080498]
[1741722995987,257.82,127.95,127.94,7.8175]
[1741722996497,257.82,127.95,127.93,7.86860498]
[1741722996687,257.82,127.95,127.93,0.05080498]
[1741722996888,253.7764,127.95,127.93,0.05080498]
[1741722997191,253.7764,127.95,127.94,7.8175]
[1741722997597,0.05327643,127.96,127.93,0.05080498]
[1741722997789,483.72,128.01,127.93,0.05080498]
[1741722997991,257.86,128.01,127.92,28.48542123]
[1741722998601,7.8154,127.98,127.92,28.48542123]
[1741722998996,257.86,128.01,127.94,0.05641654]
[1741722998997,0.05705081,127.96,127.94,0.05641654]
[1741722999199,7.8148,127.99,127.95,41.6769]
[1741722999497,0.05928515,127.96,127.95,41.6769]
[1741722999698,7.8148,127.99,127.96,7.8726179]
[1741723000406,257.86,128.01,127.96,0.0566179]
[1741723000900,7.8157,127.97,127.96,0.0566179]
[1741723002001,7.8153,127.98,127.96,0.0566179]
[1741723002404,0.05110795,128.0,127.96,0.0566179]
[1741723003003,7.8157,127.97,127.96,0.0566179]
[1741723004900,7.8154,127.98,127.96,0.0566179]
[1741723005406,62.32542123,127.99,127.96,0.0566179]
[1741723006008,0.05110795,128.0,127.96,0.0566179]
[1741723006305,0.05110795,128.0,127.96,2.7636179]
[1741723006501,7.8154,127.98,127.96,2.7636179]
[1741723007011,0.05110795,128.0,127.96,2.7636179]
[1741723007506,0.05110795,128.0,127.96,0.0566179]
[1741723008209,7.8153,127.98,127.96,0.0566179]
[1741723009912,7.8157,127.97,127.96,0.0566179]
[1741723010308,7.818,127.94,127.87,36.5228]
[1741723010514,17.80849426,127.94,127.87,36.5228]
[1741723011214,17.80849426,127.96,127.87,54.33129426]
[1741723011414,0.05387192,127.92,127.89,0.05255114]
[1741723011804,0.05387192,127.92,127.9,7.8197]
[1741723012005,7.8175,127.94,127.91,33.84]
[1741723012211,2.6864,127.97,127.91,33.84]
[1741723012410,17.80849426,127.98,127.91,33.84]
[1741723012617,7.8169,127.95,127.92,7.8187]
[1741723013016,17.80849426,127.98,127.91,33.84]
[1741723013218,7.8721914,127.95,127.92,0.04954053]
[1741723013411,0.0549914,127.95,127.92,0.04954053]
[1741723013716,7.8178,127.94,127.92,0.04954053]
[1741723014217,0.0549914,127.95,127.92,0.04954053]
[1741723014422,0.0549914,127.95,127.92,2.65004053]
[1741723014615,7.8181,127.93,127.92,0.04954053]
[1741723014818,17.80849426,127.94,127.87,2.6828]
[1741723015015,17.80849426,127.91,127.87,2.6828]
[1741723015914,0.05330485,127.9,127.88,0.05081691]
[1741723016315,7.8206,127.89,127.88,0.05081691]
[1741723018315,0.05330485,127.9,127.88,0.05081691]
[1741723018523,7.87350485,127.9,127.88,0.05081691]
[1741723019020,7.8206,127.89,127.88,0.05081691]
[1741723019620,0.05330485,127.9,127.8,7.6993]
[1741723019918,28.54204968,127.91,127.81,33.82]
[1741723020222,7.8209,127.89,127.85,7.8229]
[1741723020624,28.54204968,127.92,127.81,33.82]
[1741723020828,0.05777426,127.88,127.86,0.06010389]
[1741723022124,0.05777426,127.88,127.86,7.88240389]
[1741723022326,0.05777426,127.88,127.86,0.06010389]
[1741723022622,0.05777426,127.88,127.86,7.88190389]
[1741723022820,0.05777426,127.88,127.86,0.06010389]
[1741723023022,257.88,127.93,127.86,2.65850389]
[1741723023219,257.88,127.93,127.87,2.6233]
[1741723023922,7.8204,127.9,127.87,10.4446]
[1741723024120,257.88,127.93,127.87,2.6233]
[1741723024321,7.87899314,127.9,127.87,10.50485037]
[1741723024518,0.05869314,127.9,127.87,2.68315037]
[1741723024922,0.05869314,127.9,127.89,7.8206]
[1741723025125,257.88,127.93,127.89,7.8206]
[1741723025422,7.8188,127.92,127.89,7.8206]
[1741723025621,257.88,127.93,127.87,2.6233]
[1741723025821,7.8197,127.91,127.88,7.8209]
[1741723026026,7.8197,127.91,127.87,2.6233]
[1741723026220,257.88,127.93,127.87,2.6233]
[1741723026221,257.88,127.93,127.88,7.8209]
[1741723026416,0.05162459,127.9,127.88,7.8759908]
[1741723026626,0.05162459,127.9,127.88,0.0550908]
[1741723026828,7.87192459,127.9,127.88,0.0550908]
[1741723027127,0.05162459,127.9,127.88,0.0550908]
[1741723027427,7.8206,127.89,127.88,0.0550908]
[1741723027729,0.05162459,127.9,127.88,0.0550908]
[1741723028028,7.87172459,127.9,127.88,0.0550908]
[1741723028430,0.05162459,127.9,127.88,0.0550908]
[1741723028621,7.8206,127.89,127.88,0.0550908]
[1741723028928,0.05162459,127.9,127.88,0.0550908]
[1741723029127,7.87192459,127.9,127.88,0.0550908]
[1741723029630,0.05162459,127.9,127.88,0.0550908]
[1741723030328,0.05162459,127.9,127.89,7.8206]
[1741723031229,0.05162459,127.9,127.88,0.0550908]
[1741723032224,7.8206,127.89,127.88,0.0550908]
[1741723033321,7.87182459,127.9,127.88,0.0550908]
[1741723033517,7.87182459,127.9,127.88,7.8760908]
[1741723033728,0.05162459,127.9,127.88,7.8760908]
[1741723034731,0.05162459,127.9,127.88,0.0550908]
[1741723035226,7.8206,127.89,127.88,0.0550908]
[1741723035427,0.05162459,127.9,127.88,0.0550908]
[1741723036021,7.87202459,127.9,127.88,7.8762908]
[1741723036423,7.87202459,127.9,127.88,0.0550908]
[1741723036629,7.8206,127.89,127.88,0.0550908]